bitfinex/quotes_BTCUSD_20230120
["timestamp","ask_amount","ask_price","bid_price","bid_amount"]
[1674184423469,2.48242445,21104.0,21103.0,0.00937389]
[1674184423713,2.25580637,21104.0,21103.0,0.00937389]
[1674184424210,2.3795534,21104.0,21103.0,0.00937389]
[1674184424461,2.21047797,21104.0,21103.0,0.00937389]
[1674184425005,2.3795534,21104.0,21103.0,0.00937389]
[1674184425259,2.21047797,21104.0,21103.0,0.00937389]
[1674184426327,2.3795534,21104.0,21103.0,0.00937389]
[1674184427069,2.21047797,21104.0,21103.0,0.00937389]
[1674184427611,2.09784318,21104.0,21103.0,0.00937389]
[1674184428083,2.46438941,21104.0,21103.0,0.00937389]
[1674184428333,2.5770242,21104.0,21098.0,0.34068666]
[1674184428592,0.112,21102.0,21097.0,1.0596318]
[1674184428845,0.325303,21101.0,21097.0,1.0596318]
[1674184429115,0.3,21100.0,21097.0,1.0596318]
[1674184430179,0.336,21101.0,21097.0,1.0596318]
[1674184430411,0.809911,21101.0,21097.0,1.0596318]
[1674184430672,0.091,21100.0,21097.0,1.25395277]
[1674184430957,0.809911,21101.0,21097.0,1.0596318]
[1674184431231,0.41064171,21100.0,21098.0,0.38693015]
[1674184431696,0.41064171,21100.0,21098.0,0.59863015]
[1674184431994,0.53764171,21100.0,21098.0,0.59863015]
[1674184432255,0.127,21100.0,21099.0,0.318091]
[1674184432509,0.127,21100.0,21099.0,0.792047]
[1674184433329,0.036,21100.0,21099.0,0.792047]
[1674184433591,0.127,21100.0,21099.0,0.792047]
[1674184434386,0.036,21100.0,21099.0,0.792047]
[1674184434652,0.046,21100.0,21099.0,0.473956]
[1674184435179,0.07345919,21100.0,21099.0,0.473956]
[1674184435967,0.07345919,21100.0,21099.0,0.801365]
[1674184436491,0.07345919,21100.0,21099.0,0.473956]
[1674184437560,0.07345919,21100.0,21099.0,0.799045]
[1674184437845,0.07345919,21100.0,21099.0,0.473956]
[1674184438637,0.07345919,21100.0,21099.0,0.809014]
[1674184440780,0.07345919,21100.0,21099.0,1.22734238]
[1674184441033,0.07345919,21100.0,21099.0,1.32734238]
[1674184444706,0.06345919,21100.0,21099.0,1.32734238]
[1674184444962,0.06945919,21100.0,21099.0,1.32734238]
[1674184445222,0.06345919,21100.0,21099.0,1.32734238]
[1674184445488,0.07345919,21100.0,21099.0,1.32734238]
[1674184448272,0.07345919,21100.0,21099.0,1.80129838]
[1674184452405,0.07345919,21100.0,21099.0,1.37297]
[1674184452627,0.83125968,21100.0,21099.0,1.037912]
[1674184453381,0.53125968,21100.0,21099.0,1.358054]
[1674184455163,0.07345919,21100.0,21099.0,1.358054]
[1674184455947,0.07345919,21100.0,21099.0,1.93414653]
[1674184458285,0.07345919,21100.0,21099.0,1.82060185]
[1674184458550,0.07345919,21100.0,21099.0,1.93414653]
[1674184459067,0.07345919,21100.0,21099.0,1.358054]
[1674184459332,0.71146361,21100.0,21099.0,1.037912]
[1674184461429,0.41146361,21100.0,21099.0,1.357795]
[1674184461667,0.71146361,21100.0,21099.0,1.367133]
[1674184461918,0.71146361,21100.0,21099.0,1.037912]
[1674184462473,0.07345919,21100.0,21099.0,1.037912]
[1674184462785,0.07345919,21100.0,21099.0,1.78883609]
[1674184463494,0.07334842,21100.0,21099.0,1.90238077]
[1674184463770,0.07334842,21100.0,21099.0,1.78883609]
[1674184465067,0.07334842,21100.0,21099.0,1.90238077]
[1674184465834,0.07334842,21100.0,21099.0,1.78883609]
[1674184467145,0.07334842,21100.0,21099.0,1.90238077]
[1674184467950,0.07334842,21100.0,21099.0,1.68109245]
[1674184468689,0.07334842,21100.0,21099.0,1.56754777]
[1674184468942,0.07334842,21100.0,21099.0,1.68109245]
[1674184470210,0.07334842,21100.0,21099.0,1.56754777]
[1674184470718,0.07334842,21100.0,21099.0,1.25864936]
[1674184471246,0.07334842,21100.0,21099.0,1.14510468]
[1674184471509,0.07334842,21100.0,21099.0,1.25864936]
[1674184472535,0.52269346,21100.0,21099.0,1.25864936]
[1674184472790,0.82269346,21100.0,21099.0,0.81662368]
[1674184476781,1.13183646,21100.0,21097.0,0.4856438]
[1674184477071,0.3,21099.0,21097.0,0.4856438]
[1674184477850,0.72766954,21099.0,21097.0,0.89816547]
[1674184478567,0.73666954,21099.0,21097.0,0.89816547]
[1674184478828,0.77266954,21099.0,21097.0,0.89816547]
[1674184481461,0.34681915,21098.0,21097.0,0.4856438]
[1674184481716,0.64681915,21098.0,21097.0,0.4856438]
[1674184482491,0.38281915,21098.0,21097.0,0.4856438]
[1674184483282,0.38281915,21098.0,21097.0,0.0116618]
[1674184483573,0.39181915,21098.0,21097.0,0.0116618]
[1674184484327,0.045,21098.0,21097.0,0.0116618]
[1674184484600,0.045,21098.0,21097.0,0.1233618]
[1674184484870,0.045,21098.0,21097.0,0.4463038]
[1674184485106,0.045,21098.0,21097.0,0.8934604]
[1674184485607,0.045,21098.0,21097.0,0.9934604]
[1674184485855,0.045,21098.0,21097.0,1.4674614]
[1674184489238,0.045,21098.0,21097.0,1.0203048]
[1674184489487,0.48663297,21098.0,21097.0,0.6973628]
[1674184490491,0.48663297,21098.0,21097.0,0.2233618]
[1674184491279,0.78663297,21098.0,21097.0,0.0116618]
[1674184491805,1.10544797,21098.0,21097.0,0.01154374]
[1674184492056,1.57942597,21098.0,21097.0,0.01154374]
[1674184492327,1.26061097,21098.0,21097.0,0.01154374]
[1674184492656,1.59597697,21098.0,21097.0,0.01154374]
[1674184492856,0.518978,21098.0,21097.0,0.01154374]
[1674184493125,0.045,21098.0,21097.0,0.44837161]
[1674184493377,0.045,21098.0,21097.0,0.76699261]
[1674184494147,0.036,21098.0,21097.0,1.24099361]
[1674184494402,0.127,21098.0,21097.0,1.24099361]
[1674184495440,0.127,21098.0,21097.0,0.80416574]
[1674184495441,0.427,21098.0,21097.0,0.80416574]
[1674184495673,0.8039092,21098.0,21097.0,0.80416574]
[1674184496538,0.5039092,21098.0,21097.0,0.80416574]
[1674184496787,0.127,21098.0,21097.0,0.80416574]
[1674184498661,0.48156941,21098.0,21097.0,0.80416574]
[1674184500954,0.127,21098.0,21097.0,0.80416574]
[1674184504206,0.127,21098.0,21097.0,0.33016474]
[1674184504538,0.47016953,21098.0,21097.0,0.33016474]
[1674184504791,0.77016953,21098.0,21097.0,0.33016474]
[1674184505804,0.77016953,21098.0,21097.0,0.01154374]
[1674184506619,0.77016953,21098.0,21097.0,0.33679074]
[1674184507917,0.77016953,21098.0,21097.0,0.01154374]
[1674184508669,0.47016953,21098.0,21097.0,0.01154374]
[1674184508671,0.127,21098.0,21097.0,0.01154374]
[1674184508937,0.127,21098.0,21097.0,0.69266775]
[1674184513630,0.127,21098.0,21097.0,0.37647475]
[1674184513885,0.427,21098.0,21097.0,0.01154374]
[1674184514144,0.127,21098.0,21097.0,0.01154374]
[1674184514405,0.127,21098.0,21097.0,0.33760674]
[1674184514663,0.427,21098.0,21097.0,0.01154374]
[1674184515169,0.127,21098.0,21097.0,0.78618642]
[1674184515445,0.12689097,21098.0,21097.0,2.43360559]
[1674184515724,0.02745919,21100.0,21098.0,0.10010903]
[1674184516010,0.02745919,21100.0,21099.0,0.364099]
[1674184516318,0.02745919,21100.0,21099.0,0.838055]
[1674184516514,0.02745919,21100.0,21099.0,0.9517372]
[1674184516771,0.02745919,21100.0,21099.0,2.53443792]
[1674184517048,0.03645919,21100.0,21099.0,0.845055]
[1674184522545,0.03645919,21100.0,21099.0,1.23123443]
[1674184529801,0.03645919,21100.0,21099.0,1.70519043]
[1674184532922,0.02745919,21100.0,21099.0,1.69819043]
[1674184533183,0.02745919,21100.0,21099.0,1.70919043]
[1674184539092,0.02745919,21100.0,21099.0,1.070612]
[1674184539342,0.43501957,21100.0,21099.0,1.070612]
[1674184540182,0.43501957,21100.0,21099.0,1.395864]
[1674184542329,0.02735445,21100.0,21099.0,1.284164]
[1674184544999,0.02735445,21100.0,21099.0,1.273164]
[1674184545291,0.03535445,21100.0,21099.0,1.277164]
[1674184546061,0.03535445,21100.0,21099.0,1.273164]
[1674184546062,0.02735445,21100.0,21099.0,1.273164]
[1674184546321,0.02735445,21100.0,21099.0,1.284164]
[1674184546850,0.02735445,21100.0,21099.0,1.64320382]
[1674184547111,0.02735445,21100.0,21099.0,1.75688602]
[1674184548204,0.02735445,21100.0,21099.0,1.98280436]
[1674184548461,0.02735445,21100.0,21099.0,2.09648656]
[1674184548725,0.02735445,21100.0,21099.0,3.67808784]
[1674184548990,0.02735445,21100.0,21099.0,2.73024899]
[1674184549255,0.02735445,21100.0,21099.0,2.26701527]
[1674184549518,0.02735445,21100.0,21099.0,3.21485651]
[1674184549766,0.02735445,21100.0,21099.0,3.67808925]
[1674184550318,0.02735445,21100.0,21099.0,3.6920582]
[1674184550588,4.45e-06,21100.0,21099.0,4.13444304]
[1674184550832,4.45e-06,21100.0,21099.0,4.25473489]
[1674184551112,0.00691712,21107.0,21100.0,5.555e-05]
[1674184551370,0.43745033,21107.0,21103.0,0.22579246]
[1674184551637,0.43745033,21107.0,21104.0,1.80534257]
[1674184551972,0.43745033,21107.0,21105.0,0.6025546]
[1674184552156,0.43745033,21107.0,21106.0,0.325132]
[1674184552412,0.43745033,21107.0,21105.0,0.47381]
[1674184553157,0.43745033,21107.0,21106.0,0.318053]
[1674184553417,0.43745033,21107.0,21105.0,0.8119896]
[1674184553675,0.43745033,21107.0,21105.0,0.48081]
[1674184553931,0.00691712,21107.0,21105.0,0.48081]
[1674184554187,0.00691712,21107.0,21106.0,0.67746104]
[1674184554737,0.00691712,21107.0,21106.0,1.15125904]
[1674184554963,0.00691712,21107.0,21106.0,0.473798]
[1674184555750,0.45967249,21107.0,21106.0,0.007]
[1674184556004,0.36878865,21107.0,21106.0,0.007]
[1674184556525,0.36878865,21107.0,21106.0,0.00693567]
[1674184557890,0.66878865,21107.0,21106.0,0.00693567]
[1674184559970,0.41921712,21107.0,21106.0,0.00693567]
[1674184560223,0.84539432,21107.0,21106.0,0.00693567]
[1674184560489,1.14392032,21107.0,21106.0,0.00693567]
[1674184561290,0.84539432,21107.0,21106.0,0.00693567]
[1674184561837,1.65892832,21107.0,21106.0,0.00693567]
[1674184562457,1.31917032,21107.0,21106.0,0.00693567]
[1674184562886,1.64185832,21107.0,21106.0,0.00693567]
[1674184563423,1.31917032,21107.0,21106.0,0.00693567]
[1674184563691,0.46549677,21106.0,21104.0,0.43298111]
[1674184563945,0.46549677,21106.0,21104.0,0.09480151]
[1674184564202,0.46549677,21106.0,21103.0,0.78729629]
[1674184564469,0.46549677,21106.0,21103.0,1.19704127]
[1674184564749,0.47249677,21106.0,21104.0,0.331455]
[1674184565059,0.47249677,21106.0,21105.0,0.262085]
[1674184565270,0.46549677,21106.0,21103.0,1.19704127]
[1674184565551,0.46549677,21106.0,21103.0,0.85764937]
[1674184565806,0.47249677,21106.0,21104.0,0.004]
[1674184566084,0.47249677,21106.0,21105.0,0.314116]
[1674184566338,0.47249677,21106.0,21105.0,0.33444]
[1674184566582,0.47249677,21106.0,21105.0,0.255082]
[1674184566837,0.47249677,21106.0,21104.0,0.1]
[1674184566838,0.76549677,21106.0,21104.0,0.1]
[1674184567095,0.46549677,21106.0,21104.0,0.1]
[1674184567365,0.46549677,21106.0,21105.0,0.31435]
[1674184567653,0.46549677,21106.0,21104.0,0.1]
[1674184568138,0.47249677,21106.0,21104.0,0.1]
[1674184568397,0.47949677,21106.0,21105.0,0.317781]
[1674184568670,0.47949677,21106.0,21105.0,0.313781]
[1674184568671,0.46549677,21106.0,21105.0,0.313781]
[1674184568916,0.34312658,21105.0,21104.0,0.1]
[1674184569196,0.34312658,21105.0,21104.0,0.573843]
[1674184569464,0.34312658,21105.0,21104.0,0.89232]
[1674184569682,0.00691712,21107.0,21104.0,0.89232]
[1674184569954,0.00691712,21107.0,21105.0,0.271063]
[1674184570275,0.00691712,21107.0,21104.0,0.91337328]
[1674184570481,0.00691712,21107.0,21104.0,0.576843]
[1674184570756,0.00691712,21107.0,21104.0,0.573843]
[1674184571017,0.3391377,21106.0,21105.0,0.007]
[1674184571853,0.3391377,21106.0,21104.0,1.38420228]
[1674184572128,0.3391377,21106.0,21105.0,0.33678]
[1674184572965,0.3391377,21106.0,21105.0,0.32969]
[1674184573236,0.3391377,21106.0,21105.0,0.33369]
[1674184573492,0.3461377,21106.0,21105.0,0.33369]
[1674184577514,0.007,21106.0,21105.0,0.33369]
[1674184581952,0.3876908,21106.0,21105.0,0.33369]
[1674184582190,0.3876908,21106.0,21105.0,0.004]
[1674184583183,0.3876908,21106.0,21104.0,1.23024553]
[1674184584241,0.3876908,21106.0,21105.0,0.322364]
[1674184584502,0.3876908,21106.0,21104.0,1.23024753]
[1674184584802,0.3876908,21106.0,21104.0,1.23026253]
[1674184585789,0.3806908,21106.0,21105.0,0.336951]
[1674184586084,0.3916908,21106.0,21104.0,1.23526253]
[1674184586789,0.3806908,21106.0,21104.0,1.23026253]
[1674184587042,0.3806908,21106.0,21105.0,0.319815]
[1674184587309,0.3916908,21106.0,21105.0,0.005]
[1674184588316,0.3806908,21106.0,21104.0,1.38430387]
[1674184588583,0.3916908,21106.0,21104.0,1.38930387]
[1674184588809,0.3806908,21106.0,21104.0,1.38430387]
[1674184589063,0.3916908,21106.0,21105.0,0.005]
[1674184589316,0.3806908,21106.0,21104.0,1.38430487]
[1674184589585,0.3916908,21106.0,21104.0,1.38930487]
[1674184589844,0.3916908,21106.0,21105.0,0.326043]
[1674184590609,0.3916908,21106.0,21104.0,1.38930387]
[1674184591211,0.3806908,21106.0,21105.0,0.302975]
[1674184591410,0.011,21106.0,21105.0,0.307975]
[1674184591681,0.42801081,21107.0,21105.0,0.302975]
[1674184591935,0.011,21106.0,21104.0,1.83848719]
[1674184592206,0.011,21106.0,21105.0,0.316516]
[1674184592724,0.42801081,21107.0,21105.0,0.316516]
[1674184592990,0.42801081,21107.0,21106.0,0.272994]
[1674184593254,0.011,21106.0,21105.0,0.005]
[1674184593535,0.42801081,21107.0,21104.0,1.49777833]
[1674184593860,0.42801081,21107.0,21104.0,1.83350619]
[1674184594050,0.42801081,21107.0,21105.0,0.335746]
[1674184594585,0.42801081,21107.0,21106.0,0.336028]
[1674184594856,0.43901081,21107.0,21105.0,0.006]
[1674184595391,0.1113,21106.0,21105.0,0.006]
[1674184595651,0.4113,21106.0,21103.0,0.473845]
[1674184595913,0.38448559,21105.0,21103.0,0.473845]
[1674184597521,0.38448559,21105.0,21102.0,0.57387]
[1674184598022,0.37948559,21105.0,21102.0,0.57387]
[1674184598849,0.38048559,21105.0,21102.0,0.55587]
[1674184599878,0.38048559,21105.0,21102.0,1.25822013]
[1674184600141,0.38048559,21105.0,21102.0,1.37171259]
[1674184601463,0.38048559,21105.0,21102.0,0.92250927]
[1674184601745,0.38048559,21105.0,21102.0,1.03600173]
[1674184601968,0.38048559,21105.0,21102.0,1.37171259]
[1674184602222,0.38048559,21105.0,21102.0,1.25822013]
[1674184602914,0.38048559,21105.0,21102.0,0.92250927]
[1674184603172,0.38048559,21105.0,21102.0,1.25822013]
[1674184605187,0.38048559,21105.0,21102.0,1.37171259]
[1674184605937,0.38048559,21105.0,21102.0,1.25822013]
[1674184606151,0.33913864,21104.0,21102.0,0.92250927]
[1674184607726,0.001,21105.0,21103.0,0.35130396]
[1674184607980,0.001,21105.0,21104.0,0.306003]
[1674184608240,0.55609169,21106.0,21103.0,0.80050728]
[1674184608495,0.001,21104.0,21103.0,0.90050728]
[1674184608750,0.55609169,21106.0,21103.0,0.77358296]
[1674184609018,0.55609169,21106.0,21104.0,0.267292]
[1674184609019,0.001,21105.0,21104.0,0.267292]
[1674184609218,0.55609169,21106.0,21103.0,0.45130396]
[1674184609514,0.55609169,21106.0,21103.0,0.45230396]
[1674184610033,0.44479169,21106.0,21103.0,0.45230396]
[1674184610305,0.46570496,21105.0,21103.0,0.45230396]
[1674184610829,0.46570496,21105.0,21104.0,0.321678]
[1674184611077,0.48070712,21107.0,21103.0,0.45230396]
[1674184611341,0.48070712,21107.0,21104.0,0.34082303]
[1674184611342,0.40370685,21106.0,21104.0,0.34082303]
[1674184611590,0.001,21105.0,21104.0,0.34082303]
[1674184611857,0.40370685,21106.0,21104.0,0.34082303]
[1674184612867,0.40370685,21106.0,21104.0,0.34182303]
[1674184613149,0.40370685,21106.0,21104.0,0.34082303]
[1674184613395,0.41470685,21106.0,21104.0,0.34582303]
[1674184619344,0.41470685,21106.0,21104.0,0.81966203]
[1674184619623,0.41470685,21106.0,21105.0,0.316234]
[1674184619855,0.41470685,21106.0,21104.0,0.81966203]
[1674184620691,0.41470685,21106.0,21105.0,0.72926178]
[1674184620692,0.011,21106.0,21105.0,0.72926178]
[1674184621187,0.01093237,21106.0,21105.0,1.6522861]
[1674184621480,0.01093237,21106.0,21105.0,1.78860378]
[1674184621743,0.35449024,21107.0,21105.0,1.78860378]
[1674184622005,0.35449024,21107.0,21106.0,0.270341]
[1674184622277,0.35449024,21107.0,21106.0,0.744139]
[1674184622278,0.00691712,21107.0,21106.0,0.744139]
[1674184623085,0.00691712,21107.0,21106.0,0.750139]
[1674184623086,0.01691712,21107.0,21106.0,0.750139]
[1674184626203,0.01691712,21107.0,21106.0,0.479798]
[1674184627531,0.36283766,21107.0,21106.0,0.479798]
[1674184632631,0.66283766,21107.0,21106.0,0.479798]
[1674184634826,0.01691712,21107.0,21106.0,0.479798]
[1674184637937,0.31691712,21107.0,21106.0,0.479798]
[1674184640368,0.77208244,21107.0,21106.0,0.479798]
[1674184640772,0.77208244,21107.0,21106.0,0.006]
[1674184641032,1.20175444,21107.0,21106.0,0.006]
[1674184641287,0.88438244,21107.0,21106.0,0.006]
[1674184642092,1.21555644,21107.0,21106.0,0.006]
[1674184642920,0.88438244,21107.0,21106.0,0.006]
[1674184643189,1.23708212,21107.0,21106.0,0.006]
[1674184643456,1.79776247,21107.0,21106.0,0.006]
[1674184644575,2.27153847,21107.0,21106.0,0.00588538]
[1674184645676,2.38417326,21107.0,21106.0,0.00588538]
[1674184646439,2.34450199,21107.0,21106.0,0.00588538]
[1674184646951,2.45713678,21107.0,21106.0,0.00588538]
[1674184647472,2.34450199,21107.0,21106.0,0.00588538]
[1674184648306,2.17783186,21107.0,21106.0,0.00588538]
[1674184648524,2.17793277,21107.0,21106.0,0.00588538]
[1674184649291,2.00885734,21107.0,21106.0,0.00588538]
[1674184649564,2.17793277,21107.0,21106.0,0.00588538]
[1674184650595,2.22741599,21107.0,21106.0,0.00588538]
[1674184651148,2.23591599,21107.0,21106.0,0.00588538]
[1674184651373,2.23591599,21107.0,21101.0,0.55560573]
[1674184651632,0.1113,21105.0,21101.0,0.21989487]
[1674184651885,0.795472,21104.0,21101.0,0.21989487]
[1674184652118,0.3,21103.0,21101.0,0.21989487]
[1674184652629,0.585448,21104.0,21101.0,0.28989487]
[1674184653648,0.585448,21104.0,21101.0,0.29589487]
[1674184653903,0.586448,21104.0,21101.0,0.21989487]
[1674184654159,0.587448,21104.0,21101.0,0.29689487]
[1674184654414,0.94264676,21104.0,21101.0,0.29689487]
[1674184654663,0.36547914,21103.0,21101.0,0.29689487]
[1674184656249,0.36547914,21103.0,21101.0,0.21989487]
[1674184656509,0.36647914,21103.0,21101.0,0.29589487]
[1674184659745,0.36647914,21103.0,21101.0,0.076]
[1674184660550,0.36547914,21103.0,21100.0,1.38947517]
[1674184660809,0.36747914,21103.0,21101.0,0.071]
[1674184661067,0.36547914,21103.0,21100.0,1.38947417]
[1674184661365,0.38747914,21103.0,21101.0,0.57941567]
[1674184661593,0.38747914,21103.0,21102.0,0.325918]
[1674184662111,0.38747914,21103.0,21101.0,0.57941567]
[1674184662679,0.36547914,21103.0,21101.0,1.04831567]
[1674184662902,0.36547914,21103.0,21102.0,0.318157]
[1674184662903,0.38747914,21103.0,21102.0,0.318157]
[1674184663156,0.38747914,21103.0,21101.0,1.04831567]
[1674184663409,0.40947914,21103.0,21101.0,1.05331567]
[1674184663679,0.40947914,21103.0,21102.0,0.317669]
[1674184663981,0.044,21103.0,21102.0,0.317669]
[1674184664192,1.233786,21106.0,21102.0,1.13419252]
[1674184664193,0.34864287,21104.0,21102.0,1.13419252]
[1674184664452,0.00188519,21103.0,21102.0,0.473888]
[1674184664723,0.64864287,21104.0,21102.0,0.473888]
[1674184665787,0.002,21103.0,21102.0,0.544888]
[1674184666069,0.64864287,21104.0,21102.0,0.473888]
[1674184666349,0.65064287,21104.0,21102.0,0.545888]
[1674184666915,0.002,21104.0,21103.0,0.67152266]
[1674184667208,0.002,21104.0,21103.0,2.10506711]
[1674184667469,0.002,21104.0,21103.0,1.284762]
[1674184668785,0.39410087,21105.0,21103.0,1.284762]
[1674184669041,0.39410087,21105.0,21104.0,0.252542]
[1674184669302,0.39410087,21105.0,21103.0,0.474847]
[1674184669562,0.39410087,21105.0,21103.0,0.948697]
[1674184670088,0.39410087,21105.0,21103.0,0.947697]
[1674184670352,0.41610087,21105.0,21103.0,0.47885]
[1674184672459,0.3,21104.0,21103.0,0.47885]
[1674184673503,0.663736,21104.0,21103.0,0.47885]
[1674184673757,0.663736,21104.0,21103.0,0.47385]
[1674184674826,0.663736,21104.0,21103.0,0.47485]
[1674184675566,0.663736,21104.0,21103.0,0.001]
[1674184676956,0.997917,21104.0,21103.0,0.001]
[1674184677482,0.663736,21104.0,21103.0,0.001]
[1674184679357,1.004986,21104.0,21103.0,0.001]
[1674184680182,0.984242,21104.0,21103.0,0.001]
[1674184680675,0.663736,21104.0,21103.0,0.001]
[1674184682167,0.663736,21104.0,21102.0,0.473888]
[1674184682446,0.4326,21104.0,21103.0,0.006]
[1674184682717,0.457458,21104.0,21103.0,0.006]
[1674184682965,0.757458,21104.0,21103.0,0.006]
[1674184683236,0.36636019,21103.0,21100.0,0.83494232]
[1674184683490,1.14022819,21103.0,21102.0,0.006]
[1674184683723,2.7848956,21103.0,21102.0,0.006]
[1674184684211,2.61582017,21103.0,21102.0,0.006]
[1674184684466,2.61582017,21103.0,21099.0,0.33456052]
[1674184684733,0.1123,21100.0,21099.0,0.33456052]
[1674184684981,0.455603,21100.0,21098.0,0.47397]
[1674184685246,0.61085394,21099.0,21098.0,0.47397]
[1674184685488,0.3,21099.0,21098.0,0.47397]
[1674184686245,0.1143,21100.0,21098.0,0.54497]
[1674184686493,0.1123,21100.0,21098.0,0.47397]
[1674184687246,0.002,21099.0,21098.0,0.54497]
[1674184687496,0.07677,21099.0,21098.0,0.47397]
[1674184687743,0.37677,21099.0,21098.0,0.54497]
[1674184687974,0.83217546,21099.0,21098.0,0.47397]
[1674184688238,0.83217546,21099.0,21098.0,0.54497]
[1674184688547,0.92682301,21099.0,21097.0,0.49459974]
[1674184688765,1.40077901,21099.0,21098.0,0.071]
[1674184689031,1.86554146,21099.0,21098.0,0.071]
[1674184689299,1.996392,21099.0,21098.0,0.071]
[1674184689842,2.1091277,21099.0,21098.0,0.071]
[1674184690106,2.1091277,21099.0,21091.0,0.13792042]
[1674184690107,3.17621278,21099.0,21091.0,0.13792042]
[1674184690376,0.17399376,21092.0,21091.0,0.02442796]
[1674184690643,1.91572776,21092.0,21091.0,0.02442796]
[1674184690933,2.22422776,21092.0,21091.0,0.02442796]
[1674184691216,2.32802776,21092.0,21091.0,0.02442796]
[1674184691482,1.85391476,21092.0,21091.0,0.02442796]
[1674184692306,1.96621476,21092.0,21091.0,0.02442796]
[1674184693121,1.98721476,21092.0,21091.0,0.03042796]
[1674184693385,2.39040992,21092.0,21091.0,0.02442796]
[1674184693666,2.39040992,21092.0,21091.0,0.03042796]
[1674184693667,3.1658743,21092.0,21091.0,0.03042796]
[1674184694203,2.80758974,21092.0,21091.0,0.02442796]
[1674184694460,3.29019193,21092.0,21091.0,0.02442796]
[1674184694993,2.80758974,21092.0,21091.0,0.02442796]
[1674184695488,2.82858974,21092.0,21091.0,0.03042796]
[1674184695747,3.0891043,21092.0,21083.0,0.93469904]
[1674184696002,0.1113,21086.0,21084.0,0.46486651]
[1674184696268,0.331057,21085.0,21084.0,0.46486651]
[1674184696539,0.1113,21086.0,21084.0,0.46486651]
[1674184697048,0.1383,21086.0,21084.0,0.006]
[1674184698255,0.40701295,21085.0,21084.0,0.006]
[1674184698473,0.1383,21086.0,21084.0,0.006]
[1674184698688,0.027,21086.0,21084.0,0.34545859]
[1674184698924,0.33858668,21085.0,21084.0,0.006]
[1674184699865,0.44988668,21085.0,21083.0,0.1]
[1674184700087,0.3,21084.0,21083.0,0.1]
[1674184700330,0.3,21084.0,21082.0,0.01698879]
[1674184700552,0.50776934,21083.0,21082.0,0.01698879]
[1674184700822,0.586574,21085.0,21082.0,0.01698879]
[1674184701032,0.086,21084.0,21083.0,0.001]
[1674184701506,0.386,21084.0,21083.0,0.001]
[1674184702182,0.086,21084.0,21083.0,0.001]
[1674184702403,0.42750412,21085.0,21082.0,0.47983043]
[1674184702632,0.086,21083.0,21082.0,0.48083043]
[1674184702859,0.086,21083.0,21082.0,0.47983043]
[1674184703223,0.086,21083.0,21082.0,0.11698879]
[1674184703482,0.39792605,21084.0,21082.0,0.11698879]
[1674184703752,0.085,21083.0,21082.0,0.11798879]
[1674184704527,0.39792605,21084.0,21082.0,0.11698879]
[1674184705346,0.48392605,21084.0,21082.0,0.22918879]
[1674184706139,0.40152988,21083.0,21082.0,0.22918879]
[1674184706413,0.70152988,21083.0,21082.0,0.22918879]
[1674184706685,0.70152988,21083.0,21082.0,0.01798879]
[1674184707225,0.70152988,21083.0,21082.0,0.01698879]
[1674184707495,0.78652988,21083.0,21082.0,0.01798879]
[1674184707750,0.48652988,21083.0,21082.0,0.01798879]
[1674184708505,0.78652988,21083.0,21082.0,0.01798879]
[1674184709313,0.48652988,21083.0,21082.0,0.01798879]
[1674184710063,0.78652988,21083.0,21082.0,0.01798879]
[1674184710315,0.48652988,21083.0,21082.0,0.01798879]
[1674184710621,0.78652988,21083.0,21082.0,0.01798879]
[1674184711674,1.26084488,21083.0,21082.0,0.01798879]
[1674184711938,1.55457299,21083.0,21082.0,0.01798879]
[1674184712208,1.33363,21083.0,21082.0,0.01798879]
[1674184712457,1.666422,21083.0,21082.0,0.01798879]
[1674184713562,1.674922,21083.0,21082.0,0.01798879]
[1674184713777,1.899522,21083.0,21082.0,0.01798879]
[1674184715093,1.787222,21083.0,21082.0,0.01798879]
[1674184715635,2.19435686,21083.0,21082.0,0.01798879]
[1674184716699,1.778722,21083.0,21082.0,0.01798879]
[1674184716957,1.733217,21083.0,21082.0,0.01798879]
[1674184717243,1.99603822,21083.0,21082.0,0.01798879]
[1674184717513,1.70875122,21083.0,21082.0,0.01798879]
[1674184717790,1.73715084,21083.0,21082.0,0.01798879]
[1674184718042,1.648842,21083.0,21082.0,0.01798879]
[1674184718317,1.33363,21083.0,21082.0,0.01798879]
[1674184718601,2.0067465,21083.0,21082.0,0.01798879]
[1674184719194,1.7045615,21083.0,21082.0,0.01798879]
[1674184719476,1.2302465,21083.0,21082.0,0.01798879]
[1674184720001,1.59405692,21083.0,21082.0,0.01798879]
[1674184720259,1.187377,21083.0,21082.0,0.01792333]
[1674184721535,1.299677,21083.0,21082.0,0.01792333]
[1674184722839,1.34916022,21083.0,21082.0,0.01792333]
[1674184723092,1.83197522,21083.0,21082.0,0.01792333]
[1674184723358,1.94387522,21083.0,21082.0,0.01792333]
[1674184723630,2.66090714,21083.0,21082.0,0.01792333]
[1674184723922,4.23302935,21083.0,21082.0,0.01692333]
[1674184724157,4.32302935,21083.0,21082.0,0.01692333]
[1674184724434,4.23302935,21083.0,21082.0,0.01692333]
[1674184724694,4.32402935,21083.0,21082.0,0.01692333]
[1674184726322,4.73192935,21083.0,21082.0,0.01692333]
[1674184726602,0.2839,21081.0,21075.0,0.01119512]
[1674184726874,0.1123,21077.0,21075.0,0.01119512]
[1674184727098,1.273442,21076.0,21075.0,0.01119512]
[1674184727357,1.573442,21076.0,21075.0,0.01119512]
[1674184727616,1.47403258,21076.0,21075.0,0.01119512]
[1674184727922,1.14953658,21076.0,21075.0,0.01119512]
[1674184728177,0.474465,21077.0,21075.0,0.01119512]
[1674184728439,0.15927955,21076.0,21075.0,0.01119512]
[1674184728706,0.52035069,21076.0,21075.0,0.01119512]
[1674184729288,0.42835069,21076.0,21075.0,0.01119512]
[1674184729818,0.51935069,21076.0,21075.0,0.01119512]
[1674184730074,0.42835069,21076.0,21075.0,0.01119512]
[1674184730606,0.51935069,21076.0,21075.0,0.01119512]
[1674184730873,0.06727955,21076.0,21075.0,0.08366512]
[1674184731143,0.15727955,21076.0,21075.0,1.83523807]
[1674184731415,0.15727955,21076.0,21075.0,1.94723807]
[1674184731703,0.15727955,21076.0,21075.0,2.06073053]
[1674184731991,0.15727955,21076.0,21075.0,3.00953182]
[1674184731992,0.06727955,21076.0,21075.0,3.00953182]
[1674184732516,0.06727955,21076.0,21075.0,1.94723807]
[1674184733031,0.07627955,21076.0,21075.0,1.94723807]
[1674184733588,0.08527955,21076.0,21075.0,1.94723807]
[1674184733845,0.08527955,21076.0,21075.0,1.87476807]